[Event "15th Golden Prague Rapid Open"]
[Site "Prague"]
[Date "2019.06.30"]
[Round "4.1"]
[White "Netusil, Miloslav"]
[Black "Jirovsky, Pavel"]
[Result "0-1"]
[ECO "D05"]
[WhiteElo "2189"]
[BlackElo "2322"]
[Annotator "ChessBase"]
[PlyCount "72"]
[EventDate "2019.06.30"]
[EventType "swiss"]
[EventCountry "CZE"]
[SourceTitle "playchess.com"]
[Source "ChessBase"]
[SourceQuality "1"]
[TimeControl "720+3"]

1. d4 {[%emt 0:00:08]} d5 {[%emt 0:00:00]} 2. Nf3 {[%emt 0:00:04]} Nf6 {[%emt 0:00:01]} 3. e3 {[%emt 0:00:03]} c5 {[%emt 0:00:04]} 4. c3 {[%emt 0:00:02]} Nc6 {[%emt 0:00:03]} 5. Bd3 {[%emt 0:00:05]} Qb6 {[%emt 0:00:03]} 6. O-O {[%emt 0:00:09]} Bg4 {[%emt 0:00:03]} 7. Nbd2 {[%emt 0:00:03]} e6 {[%emt 0:00:02]} 8. dxc5 {[%emt 0:01:19]} Bxc5 {[%emt 0:00:03]} 9. e4 {[%emt 0:00:22]} Rd8 {[%emt 0:00:28]} 10. exd5 {[%emt 0:00:11]} Nxd5 {[%emt 0:00:25]} 11. Qc2 {[%emt 0:00:10]} Bh5 {[%emt 0:00:43]} 12. Ng5 {[%emt 0:00:29]} Ne3 {[%emt 0:01:59]} 13. fxe3 {[%emt 0:00:28]} Bxe3+ {[%emt 0:00:01]} 14. Kh1 {[%emt 0:00:02]} Bxg5 {[%emt 0:00:02]} 15. Nc4 {[%emt 0:00:06]} Qc5 {[%emt 0:00:05]} 16. b4 {[%emt 0:00:51]} Qd5 {[%emt 0:00:07]} 17. Be4 {[%emt 0:00:08]} Qxc4 {[%emt 0:00:12]} 18. Bxg5 {[%emt 0:00:01]} Rd7 {[%emt 0:00:03]} 19. Rae1 {[%emt 0:00:23]} Bg6 {[%emt 0:01:05]} 20. Bxg6 {[%emt 0:00:13]} hxg6 {[%emt 0:00:01]} 21. Qf2 {[%emt 0:00:41]} O-O {[%emt 0:01:19]} 22. a4 {[%emt 0:00:04]} a6 {[%emt 0:00:37]} 23. Qg3 {[%emt 0:00:12]} Rd3 {[%emt 0:01:26]} 24. Rf3 {[%emt 0:00:27]} Rxf3 {[%emt 0:00:13]} 25. Qxf3 {[%emt 0:00:01]} f6 {[%emt 0:00:02]} 26. Bc1 {[%emt 0:00:44]} e5 {[%emt 0:00:18]} 27. h3 {[%emt 0:00:18]} Rd8 {[%emt 0:00:22]} 28. Qg3 {[%emt 0:01:07]} g5 {[%emt 0:00:07]} 29. Qf3 {[%emt 0:00:09]} Rd3 {[%emt 0:00:11]} 30. Qf5 {[%emt 0:04:30]} Ne7 {[%emt 0:00:11]} 31. Qf2 {[%emt 0:00:00]} Rxc3 {[%emt 0:00:19]} 32. Bd2 {[%emt 0:00:00]} Rc2 {[%emt 0:00:02]} 33. Qe3 {[%emt 0:00:00]} Nd5 {[%emt 0:00:07]} 34. Qf2 {[%emt 0:00:00]} Qd3 {[%emt 0:00:24]} 35. Rc1 {[%emt 0:00:00]} Rxd2 {[%emt 0:00:17]} 36. Rc8+ {[%emt 0:00:00]} Kh7 {[%emt 0:00:04]} 0-1

[Event "15th Golden Prague Rapid Open"]
[Site "Prague"]
[Date "2019.06.30"]
[Round "4.2"]
[White "Soural, Jan"]
[Black "Rydl, Jiri"]
[Result "0-1"]
[ECO "E06"]
[WhiteElo "2196"]
[BlackElo "2422"]
[Annotator "ChessBase"]
[PlyCount "128"]
[EventDate "2019.06.30"]
[EventType "swiss"]
[EventCountry "CZE"]
[SourceTitle "playchess.com"]
[Source "ChessBase"]
[SourceQuality "1"]
[TimeControl "720+3"]

1. d4 {[%emt 0:00:00]} Nf6 {[%emt 0:00:00]} 2. c4 {[%emt 0:00:00]} e6 {[%emt 0:00:04]} 3. g3 {[%emt 0:00:06]} d5 {[%emt 0:00:04]} 4. Nf3 {[%emt 0:00:03]} Be7 {[%emt 0:00:03]} 5. Bg2 {[%emt 0:00:01]} O-O {[%emt 0:00:04]} 6. O-O {[%emt 0:00:02]} c6 {[%emt 0:00:13]} 7. Nc3 {[%emt 0:00:13]} b6 {[%emt 0:00:14]} 8. Ne5 {[%emt 0:00:11]} Ba6 {[%emt 0:00:23]} 9. b3 {[%emt 0:00:59]} Qc8 {[%emt 0:00:46]} 10. Bb2 {[%emt 0:00:42]} Nbd7 {[%emt 0:00:41]} 11. cxd5 {[%emt 0:00:30]} Nxe5 {[%emt 0:00:59]} 12. dxe5 {[%emt 0:01:13]} Nxd5 {[%emt 0:00:03]} 13. Nxd5 {[%emt 0:01:38]} cxd5 {[%emt 0:00:42]} 14. Qd2 {[%emt 0:00:13]} Rd8 {[%emt 0:00:47]} 15. Rac1 {[%emt 0:01:18]} Qd7 {[%emt 0:00:24]} 16. Rc2 {[%emt 0:00:15]} Rac8 {[%emt 0:00:25]} 17. Rfc1 {[%emt 0:00:03]} Rxc2 {[%emt 0:00:23]} 18. Rxc2 {[%emt 0:00:08]} h6 {[%emt 0:00:29]} 19. Qc1 {[%emt 0:00:55]} Bc5 {[%emt 0:00:52]} 20. e3 {[%emt 0:00:43]} Bd3 {[%emt 0:00:53]} 21. Rd2 {[%emt 0:00:30]} Bg6 {[%emt 0:00:05]} 22. e4 {[%emt 0:01:27]} d4 {[%emt 0:00:26]} 23. b4 {[%emt 0:00:31]} Bxb4 {[%emt 0:00:13]} 24. Rxd4 {[%emt 0:00:02]} Qe7 {[%emt 0:00:09]} 25. Qd1 {[%emt 0:00:51]} Rxd4 {[%emt 0:00:08]} 26. Qxd4 {[%emt 0:00:01]} Bc5 {[%emt 0:00:02]} 27. Qd3 {[%emt 0:00:10]} Qc7 {[%emt 0:00:30]} 28. h4 {[%emt 0:00:06]} Bh5 {[%emt 0:00:16]} 29. Bh3 {[%emt 0:00:14]} g5 {[%emt 0:00:33]} 30. g4 {[%emt 0:00:14]} Bg6 {[%emt 0:00:01]} 31. h5 {[%emt 0:00:01]} Bh7 {[%emt 0:00:01]} 32. Bg2 {[%emt 0:00:02]} Kf8 {[%emt 0:00:18]} 33. Bf3 {[%emt 0:00:01]} Ke7 {[%emt 0:00:01]} 34. Kg2 {[%emt 0:00:01]} Qd7 {[%emt 0:00:04]} 35. Be2 {[%emt 0:00:05]} Qa4 {[%emt 0:00:28]} 36. f3 {[%emt 0:00:15]} Qxa2 {[%emt 0:00:06]} 37. Bc3 {[%emt 0:00:03]} Qb3 {[%emt 0:00:13]} 38. Bd1 {[%emt 0:00:02]} Qa3 {[%emt 0:00:04]} 39. Qd2 {[%emt 0:00:02]} a5 {[%emt 0:00:24]} 40. Bc2 {[%emt 0:00:02]} Bb4 {[%emt 0:00:26]} 41. Bxb4+ {[%emt 0:00:02]} Qxb4 {[%emt 0:00:01]} 42. Qd3 {[%emt 0:00:01]} Qc5 {[%emt 0:00:04]} 43. Ba4 {[%emt 0:00:04]} Qxe5 {[%emt 0:00:04]} 44. Qd7+ {[%emt 0:00:02]} Kf6 {[%emt 0:00:01]} 45. Qd8+ {[%emt 0:00:01]} Kg7 {[%emt 0:00:01]} 46. Qxb6 {[%emt 0:00:01]} Bxe4 {[%emt 0:00:09]} 47. fxe4 {[%emt 0:00:10]} Qxe4+ {[%emt 0:00:02]} 48. Kh3 {[%emt 0:00:04]} Qxa4 {[%emt 0:00:03]} 49. Qb2+ {[%emt 0:00:00]} Kf8 {[%emt 0:00:24]} 50. Qb8+ {[%emt 0:00:05]} Qe8 {[%emt 0:00:04]} 51. Qa7 {[%emt 0:00:02]} Qd8 {[%emt 0:00:03]} 52. Qe3 {[%emt 0:00:02]} Kg8 {[%emt 0:00:05]} 53. Qc3 {[%emt 0:00:02]} a4 {[%emt 0:00:02]} 54. Qb4 {[%emt 0:00:02]} Qd3+ {[%emt 0:00:01]} 55. Kg2 {[%emt 0:00:01]} Qc2+ {[%emt 0:00:04]} 56. Kg1 {[%emt 0:00:02]} Qb3 {[%emt 0:00:13]} 57. Qd4 {[%emt 0:00:01]} a3 {[%emt 0:00:13]} 58. Qd8+ {[%emt 0:00:02]} Kh7 {[%emt 0:00:01]} 59. Qe7 {[%emt 0:00:06]} Qb1+ {[%emt 0:00:06]} 60. Kg2 {[%emt 0:00:01]} Qe4+ {[%emt 0:00:03]} 61. Kg1 {[%emt 0:00:02]} Qe3+ {[%emt 0:00:02]} 62. Kg2 {[%emt 0:00:01]} Qe2+ {[%emt 0:00:01]} 63. Kg3 {[%emt 0:00:02]} Qe3+ {[%emt 0:00:06]} 64. Kg2 {[%emt 0:00:01]} Kg7 {[%emt 0:00:01]} 0-1

[Event "15th Golden Prague Rapid Open"]
[Site "Prague"]
[Date "2019.06.30"]
[Round "4.3"]
[White "Kiss, Pal"]
[Black "Benes, Petr"]
[Result "1/2-1/2"]
[ECO "A54"]
[WhiteElo "2278"]
[BlackElo "2103"]
[Annotator "ChessBase"]
[PlyCount "51"]
[EventDate "2019.06.30"]
[EventType "swiss"]
[EventCountry "CZE"]
[SourceTitle "playchess.com"]
[Source "ChessBase"]
[SourceQuality "1"]
[TimeControl "720+3"]

1. d4 {[%emt 0:00:00]} Nc6 {[%emt 0:00:02]} 2. Nf3 {[%emt 0:00:02]} d6 {[%emt 0:00:03]} 3. c4 {[%emt 0:00:08]} e5 {[%emt 0:00:07]} 4. d5 {[%emt 0:00:20]} Nce7 {[%emt 0:00:11]} 5. e4 {[%emt 0:00:03]} Ng6 {[%emt 0:00:12]} 6. Nc3 {[%emt 0:00:07]} Nf6 {[%emt 0:00:05]} 7. g3 {[%emt 0:00:14]} h5 {[%emt 0:00:12]} 8. h4 {[%emt 0:00:38]} Be7 {[%emt 0:00:13]} 9. Be2 {[%emt 0:00:05]} Bd7 {[%emt 0:01:28]} 10. Bg5 {[%emt 0:00:37]} Ng4 {[%emt 0:00:37]} 11. Bd2 {[%emt 0:00:58]} c5 {[%emt 0:00:43]} 12. Nh2 {[%emt 0:01:40]} Qc8 {[%emt 0:00:21]} 13. f3 {[%emt 0:00:36]} Nxh2 {[%emt 0:01:47]} 14. Rxh2 {[%emt 0:00:02]} Nf8 {[%emt 0:00:01]} 15. Bd3 {[%emt 0:01:11]} Nh7 {[%emt 0:00:17]} 16. Qe2 {[%emt 0:00:37]} Nf6 {[%emt 0:00:23]} 17. Be3 {[%emt 0:00:16]} Qc7 {[%emt 0:00:06]} 18. O-O-O {[%emt 0:00:18]} a6 {[%emt 0:00:25]} 19. Kb1 {[%emt 0:00:02]} Rb8 {[%emt 0:00:48]} 20. b3 {[%emt 0:00:47]} Bd8 {[%emt 0:00:04]} 21. Qf1 {[%emt 0:00:12]} Qa5 {[%emt 0:00:21]} 22. Bd2 {[%emt 0:00:09]} Qa3 {[%emt 0:00:02]} 23. Bc1 {[%emt 0:00:23]} Qb4 {[%emt 0:00:09]} 24. Bd2 {[%emt 0:00:07]} Qa3 {[%emt 0:00:01]} 25. Bc1 Qb4 {[%emt 0:04:37]} 26. Rh1 {[%emt 0:03:46]} 1/2-1/2

[Event "15th Golden Prague Rapid Open"]
[Site "Prague"]
[Date "2019.06.30"]
[Round "4.4"]
[White "Ralis, Petr"]
[Black "Rehak, Martin"]
[Result "1-0"]
[ECO "B30"]
[WhiteElo "2207"]
[BlackElo "2071"]
[Annotator "ChessBase"]
[PlyCount "49"]
[EventDate "2019.06.30"]
[EventType "swiss"]
[EventCountry "CZE"]
[SourceTitle "playchess.com"]
[Source "ChessBase"]
[SourceQuality "1"]
[TimeControl "720+3"]

1. e4 {[%emt 0:12:03]} c5 {[%emt 0:12:03]} 2. Nf3 {[%emt 0:00:03]} Nc6 3. d3 d5 {[%emt 0:00:06]} 4. Nbd2 g6 {[%emt 0:00:03]} 5. g3 {[%emt 0:00:09]} b6 {[%emt 0:00:03]} 6. Bg2 {[%emt 0:00:03]} Bb7 {[%emt 0:00:03]} 7. exd5 {[%emt 0:00:03]} Qxd5 {[%emt 0:00:03]} 8. O-O {[%emt 0:00:03]} Qd7 {[%emt 0:00:03]} 9. Nc4 {[%emt 0:00:03]} f6 {[%emt 0:00:03]} 10. Re1 {[%emt 0:00:03]} e5 {[%emt 0:00:03]} 11. a4 {[%emt 0:00:03]} Bd6 {[%emt 0:00:03]} 12. a5 {[%emt 0:00:03]} Bc7 {[%emt 0:00:03]} 13. a6 {[%emt 0:00:03]} Bc8 14. d4 {[%emt 0:00:03]} Nge7 {[%emt 0:00:06]} 15. dxe5 {[%emt 0:00:03]} Qxd1 {[%emt 0:00:03]} 16. Rxd1 O-O {[%emt 0:00:03]} 17. exf6 {[%emt 0:00:06]} Rxf6 {[%emt 0:00:03]} 18. Bg5 {[%emt 0:00:03]} Rf7 {[%emt 0:00:03]} 19. Nfe5 {[%emt 0:00:03]} Nxe5 {[%emt 0:00:03]} 20. Nxe5 {[%emt 0:00:03]} Bxe5 {[%emt 0:00:03]} 21. Bxa8 {[%emt 0:00:03]} Bxb2 {[%emt 0:00:03]} 22. Rd8+ {[%emt 0:00:03]} Kg7 {[%emt 0:00:03]} 23. Re1 {[%emt 0:00:03]} Bd4 {[%emt 0:00:03]} 24. Rxe7 {[%emt 0:00:03]} Bxf2+ {[%emt 0:00:03]} 25. Kg2 {[%emt 0:00:03]} 1-0

[Event "15th Golden Prague Rapid Open"]
[Site "Prague"]
[Date "2019.06.30"]
[Round "4.5"]
[White "Groh, Jiri"]
[Black "Franc, Lubor"]
[Result "1/2-1/2"]
[ECO "D94"]
[WhiteElo "2001"]
[BlackElo "1788"]
[Annotator "NA"]
[PlyCount "94"]
[EventDate "2019.06.30"]
[EventType "swiss"]
[EventCountry "CZE"]
[SourceTitle "playchess.com"]
[Source "ChessBase"]
[SourceQuality "1"]
[TimeControl "720+3"]

1. Nf3 {[%emt 0:00:01]} c6 {[%emt 0:00:00]} 2. c4 {[%emt 0:00:03]} d5 {[%emt 0:00:00]} 3. d4 {[%emt 0:00:04]} Nf6 {[%emt 0:00:06]} 4. e3 {[%emt 0:00:02]} g6 {[%emt 0:00:02]} 5. Be2 {[%emt 0:00:02]} Bg7 {[%emt 0:00:01]} 6. O-O {[%emt 0:00:02]} O-O {[%emt 0:00:05]} 7. Nc3 {[%emt 0:00:01]} Nbd7 {[%emt 0:00:21]} 8. b3 {[%emt 0:00:06]} Ne4 {[%emt 0:00:06]} 9. Bb2 {[%emt 0:00:07]} Ndf6 {[%emt 0:00:17]} 10. Ne5 {[%emt 0:00:13]} Re8 {[%emt 0:00:47]} 11. f3 {[%emt 0:00:11]} Nxc3 {[%emt 0:00:17]} 12. Bxc3 {[%emt 0:00:02]} Be6 {[%emt 0:00:16]} 13. Qd2 {[%emt 0:00:14]} Nd7 {[%emt 0:00:38]} 14. Nd3 {[%emt 0:00:13]} dxc4 {[%emt 0:00:07]} 15. Nf4 {[%emt 0:00:01]} Nf8 {[%emt 0:01:46]} 16. bxc4 {[%emt 0:00:10]} Bf5 {[%emt 0:00:36]} 17. g4 {[%emt 0:00:17]} Bc8 {[%emt 0:00:20]} 18. Rab1 {[%emt 0:00:02]} e5 {[%emt 0:00:10]} 19. dxe5 {[%emt 0:00:28]} Qxd2 {[%emt 0:00:02]} 20. Bxd2 {[%emt 0:00:02]} Bxe5 {[%emt 0:00:01]} 21. Ng2 {[%emt 0:00:11]} b6 {[%emt 0:00:07]} 22. f4 {[%emt 0:00:08]} Bg7 {[%emt 0:00:21]} 23. Bf3 {[%emt 0:00:06]} Bd7 {[%emt 0:00:29]} 24. g5 {[%emt 0:00:22]} Rac8 {[%emt 0:00:07]} 25. Rfc1 {[%emt 0:00:39]} c5 {[%emt 0:00:02]} 26. Bc3 {[%emt 0:00:04]} Bc6 {[%emt 0:00:07]} 27. Kf2 {[%emt 0:00:16]} Red8 {[%emt 0:00:18]} 28. Bxg7 {[%emt 0:00:06]} Kxg7 {[%emt 0:00:01]} 29. Rb2 {[%emt 0:00:18]} Ne6 {[%emt 0:00:16]} 30. h4 {[%emt 0:00:08]} Rd6 {[%emt 0:00:29]} 31. h5 {[%emt 0:00:19]} Bxf3 {[%emt 0:00:51]} 32. h6+ {[%emt 0:00:03]} Kf8 {[%emt 0:00:03]} 33. Kxf3 {[%emt 0:00:02]} Rcd8 {[%emt 0:00:01]} 34. Rcc2 {[%emt 0:00:07]} R8d7 {[%emt 0:00:12]} 35. a4 {[%emt 0:00:44]} Rd3 {[%emt 0:00:07]} 36. Ke2 {[%emt 0:00:28]} Ra3 {[%emt 0:00:15]} 37. Ra2 {[%emt 0:00:05]} Rdd3 {[%emt 0:00:08]} 38. Rxa3 {[%emt 0:00:22]} Rxa3 {[%emt 0:00:01]} 39. Nh4 {[%emt 0:00:42]} Rxa4 {[%emt 0:04:04]} 40. Nf3 {[%emt 0:00:05]} Ke7 {[%emt 0:00:00]} 41. Ne5 {[%emt 0:00:07]} f6 {[%emt 0:00:00]} 42. Nxg6+ {[%emt 0:00:43]} Kf7 {[%emt 0:00:00]} 43. f5 {[%emt 0:00:39]} Nxg5 {[%emt 0:00:00]} 44. Nf4 {[%emt 0:00:07]} Ne4 {[%emt 0:00:00]} 45. Kd3 {[%emt 0:00:32]} Nd6 {[%emt 0:00:00]} 46. e4 {[%emt 0:00:11]} Ra3+ {[%emt 0:00:00]} 47. Ke2 {[%emt 0:04:26]} Nxe4 {[%emt 0:00:24]} 1/2-1/2

[Event "15th Golden Prague Rapid Open"]
[Site "Prague"]
[Date "2019.06.30"]
[Round "4.6"]
[White "Burdik, Lubomir"]
[Black "Krnak, Vladimir"]
[Result "1-0"]
[ECO "E85"]
[WhiteElo "2132"]
[BlackElo "1691"]
[Annotator "ChessBase"]
[PlyCount "88"]
[EventDate "2019.06.30"]
[EventType "swiss"]
[EventCountry "CZE"]
[SourceTitle "playchess.com"]
[Source "ChessBase"]
[SourceQuality "1"]
[TimeControl "720+3"]

1. c4 {[%emt 0:00:00]} Nf6 {[%emt 0:00:00]} 2. Nc3 {[%emt 0:00:03]} g6 {[%emt 0:00:02]} 3. e4 {[%emt 0:00:03]} d6 {[%emt 0:00:02]} 4. d4 {[%emt 0:00:01]} Bg7 {[%emt 0:00:04]} 5. Be3 {[%emt 0:00:12]} O-O {[%emt 0:00:04]} 6. f3 {[%emt 0:00:02]} Nc6 {[%emt 0:00:36]} 7. Nge2 {[%emt 0:00:04]} a6 {[%emt 0:00:18]} 8. Qd2 {[%emt 0:00:03]} e5 {[%emt 0:00:14]} 9. d5 {[%emt 0:00:09]} Ne7 {[%emt 0:00:30]} 10. g4 {[%emt 0:00:44]} h5 {[%emt 0:00:13]} 11. h3 {[%emt 0:00:41]} Bd7 {[%emt 0:00:36]} 12. O-O-O {[%emt 0:00:10]} b5 {[%emt 0:00:10]} 13. Ng3 {[%emt 0:00:09]} h4 {[%emt 0:00:28]} 14. g5 {[%emt 0:00:48]} hxg3 {[%emt 0:00:29]} 15. gxf6 {[%emt 0:00:02]} Bxf6 {[%emt 0:00:03]} 16. h4 {[%emt 0:00:47]} Kg7 {[%emt 0:00:10]} 17. Bh6+ {[%emt 0:00:09]} Kg8 {[%emt 0:00:08]} 18. Bxf8 {[%emt 0:00:13]} Qxf8 {[%emt 0:00:12]} 19. Qg2 {[%emt 0:00:48]} Qh6+ {[%emt 0:00:11]} 20. Kb1 {[%emt 0:00:01]} Qf4 {[%emt 0:00:02]} 21. Ne2 {[%emt 0:00:12]} Qe3 {[%emt 0:00:21]} 22. Nxg3 {[%emt 0:00:32]} bxc4 {[%emt 0:00:22]} 23. Bxc4 {[%emt 0:00:07]} a5 {[%emt 0:00:25]} 24. h5 {[%emt 0:00:26]} a4 {[%emt 0:00:28]} 25. hxg6 {[%emt 0:00:35]} fxg6 {[%emt 0:00:09]} 26. Nf1 {[%emt 0:01:14]} Qc5 {[%emt 0:00:17]} 27. Rc1 {[%emt 0:00:03]} Qb4 {[%emt 0:00:19]} 28. Ne3 {[%emt 0:00:08]} a3 {[%emt 0:00:12]} 29. b3 {[%emt 0:00:13]} Kg7 {[%emt 0:00:18]} 30. Qh2 {[%emt 0:00:27]} Kf7 {[%emt 0:00:42]} 31. Qh7+ {[%emt 0:00:25]} Bg7 {[%emt 0:00:12]} 32. Qh2 {[%emt 0:00:22]} Rh8 {[%emt 0:00:11]} 33. Qc2 {[%emt 0:00:18]} Rh3 {[%emt 0:00:36]} 34. Rxh3 {[%emt 0:00:06]} Bxh3 {[%emt 0:00:01]} 35. Rh1 {[%emt 0:00:02]} Bd7 {[%emt 0:00:15]} 36. Ng4 {[%emt 0:00:17]} Bf6 {[%emt 0:00:45]} 37. Nxf6 {[%emt 0:00:10]} Kxf6 {[%emt 0:00:02]} 38. Rh7 {[%emt 0:00:10]} Qe1+ {[%emt 0:00:14]} 39. Qc1 {[%emt 0:00:01]} Qf2 {[%emt 0:00:19]} 40. Rh1 {[%emt 0:00:40]} Ng8 {[%emt 0:00:24]} 41. Qxa3 {[%emt 0:00:18]} Kg7 {[%emt 0:00:50]} 42. Qc1 {[%emt 0:00:03]} Qxf3 {[%emt 0:00:13]} 43. Re1 {[%emt 0:00:10]} Nf6 {[%emt 0:00:06]} 44. Qe3 {[%emt 0:00:10]} Qg3 {[%emt 0:00:14]} 1-0

[Event "15th Golden Prague Rapid Open"]
[Site "Prague"]
[Date "2019.06.30"]
[Round "4.7"]
[White "Hozda, Max"]
[Black "Vavrinec, Tomas"]
[Result "1/2-1/2"]
[ECO "A65"]
[WhiteElo "1695"]
[BlackElo "1994"]
[Annotator "NA"]
[PlyCount "130"]
[EventDate "2019.06.30"]
[EventType "swiss"]
[EventCountry "CZE"]
[SourceTitle "playchess.com"]
[Source "ChessBase"]
[SourceQuality "1"]
[TimeControl "720+3"]

1. d4 {[%emt 0:12:03]} Nf6 {[%emt 0:12:03]} 2. c4 {[%emt 0:00:03]} c5 {[%emt 0:00:03]} 3. d5 {[%emt 0:00:03]} e6 4. Nc3 {[%emt 0:00:03]} exd5 {[%emt 0:00:06]} 5. cxd5 {[%emt 0:00:03]} d6 {[%emt 0:00:03]} 6. e4 {[%emt 0:00:03]} g6 {[%emt 0:00:03]} 7. Bg5 {[%emt 0:00:03]} h6 {[%emt 0:00:03]} 8. Bh4 {[%emt 0:00:03]} Nbd7 {[%emt 0:00:03]} 9. Nf3 {[%emt 0:00:03]} a6 {[%emt 0:00:03]} 10. a4 {[%emt 0:00:03]} Qe7 {[%emt 0:00:03]} 11. Be2 {[%emt 0:00:03]} g5 {[%emt 0:00:03]} 12. Bg3 {[%emt 0:00:03]} Nxe4 {[%emt 0:00:03]} 13. O-O {[%emt 0:00:03]} Nxg3 {[%emt 0:00:03]} 14. hxg3 {[%emt 0:00:03]} Bg7 {[%emt 0:00:03]} 15. Qb3 {[%emt 0:00:03]} O-O {[%emt 0:00:03]} 16. Rfe1 {[%emt 0:00:03]} Ne5 {[%emt 0:00:03]} 17. Rad1 {[%emt 0:00:03]} Bf5 {[%emt 0:00:03]} 18. Nxe5 {[%emt 0:00:03]} Bxe5 {[%emt 0:00:03]} 19. Bd3 {[%emt 0:00:03]} Bxd3 {[%emt 0:00:03]} 20. Rxd3 {[%emt 0:00:03]} Qf6 {[%emt 0:00:03]} 21. Ne4 {[%emt 0:00:03]} Qf5 {[%emt 0:00:03]} 22. Rf3 {[%emt 0:00:03]} Qg6 {[%emt 0:00:03]} 23. Qc4 {[%emt 0:00:03]} b5 {[%emt 0:00:03]} 24. axb5 {[%emt 0:00:03]} axb5 {[%emt 0:00:03]} 25. Qxb5 {[%emt 0:00:03]} Rab8 {[%emt 0:00:03]} 26. Qc6 {[%emt 0:00:03]} Rxb2 {[%emt 0:00:03]} 27. g4 {[%emt 0:00:03]} Rb4 {[%emt 0:00:03]} 28. Nd2 {[%emt 0:00:03]} Rxg4 {[%emt 0:00:03]} 29. Qd7 {[%emt 0:00:03]} Rh4 {[%emt 0:00:03]} 30. Rh3 {[%emt 0:00:03]} Rxh3 {[%emt 0:00:03]} 31. Qxh3 {[%emt 0:00:03]} Kg7 {[%emt 0:00:03]} 32. Nf3 {[%emt 0:00:03]} Bf6 {[%emt 0:00:03]} 33. Qd7 {[%emt 0:00:03]} Rd8 {[%emt 0:00:03]} 34. Qb5 {[%emt 0:00:03]} Qc2 {[%emt 0:00:03]} 35. Qe2 {[%emt 0:00:03]} Qxe2 {[%emt 0:00:03]} 36. Rxe2 {[%emt 0:00:03]} Rb8 {[%emt 0:00:03]} 37. g3 {[%emt 0:00:03]} g4 {[%emt 0:00:03]} 38. Ne1 {[%emt 0:00:03]} Rb1 {[%emt 0:00:03]} 39. Kg2 c4 {[%emt 0:00:03]} 40. Nc2 {[%emt 0:00:06]} Rb2 {[%emt 0:00:03]} 41. f3 {[%emt 0:00:03]} h5 {[%emt 0:00:03]} 42. fxg4 {[%emt 0:00:03]} hxg4 {[%emt 0:00:03]} 43. Kf2 {[%emt 0:00:03]} Be5 {[%emt 0:00:03]} 44. Kg2 {[%emt 0:00:03]} Rb3 {[%emt 0:00:03]} 45. Re3 {[%emt 0:00:03]} Rb2 {[%emt 0:00:03]} 46. Re2 {[%emt 0:00:03]} c3 47. Kf2 {[%emt 0:00:03]} f5 {[%emt 0:00:06]} 48. Kg2 {[%emt 0:00:03]} Kf6 {[%emt 0:00:03]} 49. Kf2 {[%emt 0:00:03]} Kg5 {[%emt 0:00:03]} 50. Kg2 {[%emt 0:00:03]} f4 {[%emt 0:00:03]} 51. gxf4+ {[%emt 0:00:03]} Kxf4 {[%emt 0:00:03]} 52. Kf2 {[%emt 0:00:03]} g3+ {[%emt 0:00:03]} 53. Kg2 {[%emt 0:00:03]} Kf5 {[%emt 0:00:03]} 54. Kf3 {[%emt 0:00:03]} Kg5 {[%emt 0:00:03]} 55. Kg2 {[%emt 0:00:03]} Rb5 {[%emt 0:00:03]} 56. Ne3 {[%emt 0:00:03]} Bf4 {[%emt 0:00:03]} 57. Kf3 {[%emt 0:00:03]} Rb2 {[%emt 0:00:03]} 58. Nc2 {[%emt 0:00:03]} Rb1 {[%emt 0:00:03]} 59. Nd4 {[%emt 0:00:03]} Be5 {[%emt 0:00:03]} 60. Nc2 {[%emt 0:00:03]} Rf1+ {[%emt 0:00:03]} 61. Kg2 {[%emt 0:00:03]} Rd1 {[%emt 0:00:03]} 62. Ne1 {[%emt 0:00:03]} Rd2 {[%emt 0:00:03]} 63. Nf3+ {[%emt 0:00:03]} Kf4 {[%emt 0:00:03]} 64. Nxd2 {[%emt 0:00:03]} cxd2 {[%emt 0:00:03]} 65. Rxd2 {[%emt 0:00:03]} Ke3 {[%emt 0:00:03]} 1/2-1/2

[Event "15th Golden Prague Rapid Open"]
[Site "Prague"]
[Date "2019.06.30"]
[Round "4.8"]
[White "Kalousek, Zdenek"]
[Black "Cermak, Dusan"]
[Result "1-0"]
[ECO "A16"]
[WhiteElo "2005"]
[BlackElo "1456"]
[Annotator "NA"]
[PlyCount "71"]
[EventDate "2019.06.30"]
[EventType "swiss"]
[EventCountry "CZE"]
[SourceTitle "playchess.com"]
[Source "ChessBase"]
[SourceQuality "1"]
[TimeControl "720+3"]

1. c4 {[%emt 0:00:00]} Nc6 {[%emt 0:00:00]} 2. Nc3 {[%emt 0:00:00]} Nf6 {[%emt 0:00:05]} 3. Nf3 {[%emt 0:00:00]} d5 {[%emt 0:00:05]} 4. e3 {[%emt 0:00:01]} Bg4 {[%emt 0:00:14]} 5. cxd5 {[%emt 0:00:41]} Nxd5 {[%emt 0:00:14]} 6. Be2 {[%emt 0:00:02]} e6 {[%emt 0:01:03]} 7. O-O {[%emt 0:00:06]} a6 {[%emt 0:00:48]} 8. h3 {[%emt 0:00:18]} Bh5 {[%emt 0:00:15]} 9. a3 {[%emt 0:00:12]} Bg6 {[%emt 0:00:37]} 10. d3 {[%emt 0:01:08]} Be7 {[%emt 0:01:09]} 11. e4 {[%emt 0:00:15]} Nf6 {[%emt 0:00:34]} 12. Be3 {[%emt 0:00:08]} O-O {[%emt 0:00:12]} 13. Qc2 {[%emt 0:00:02]} Qd7 {[%emt 0:00:30]} 14. Rfd1 {[%emt 0:00:10]} Rfd8 {[%emt 0:00:30]} 15. Rd2 {[%emt 0:00:02]} b5 {[%emt 0:00:47]} 16. b4 {[%emt 0:00:25]} Bd6 {[%emt 0:00:53]} 17. Rc1 {[%emt 0:00:50]} Ne7 {[%emt 0:00:34]} 18. e5 {[%emt 0:00:13]} Nf5 {[%emt 0:00:41]} 19. exd6 {[%emt 0:00:49]} Nxe3 {[%emt 0:00:12]} 20. fxe3 {[%emt 0:00:02]} Qxd6 {[%emt 0:00:05]} 21. Nd1 {[%emt 0:00:51]} Nd5 {[%emt 0:00:37]} 22. Kf2 {[%emt 0:02:09]} Qb6 {[%emt 0:01:46]} 23. Qc5 {[%emt 0:00:11]} Qxc5 {[%emt 0:01:18]} 24. Rxc5 {[%emt 0:00:01]} Rd7 {[%emt 0:00:00]} 25. Ne5 {[%emt 0:00:20]} Re7 {[%emt 0:00:00]} 26. Bf3 {[%emt 0:00:22]} Rc8 {[%emt 0:00:00]} 27. Nc6 {[%emt 0:01:16]} Rd7 {[%emt 0:00:00]} 28. Bxd5 {[%emt 0:00:03]} exd5 {[%emt 0:00:00]} 29. Rxd5 {[%emt 0:00:05]} Rxd5 {[%emt 0:00:03]} 30. Ne7+ {[%emt 0:00:01]} Kf8 {[%emt 0:00:01]} 31. Nxd5 {[%emt 0:00:07]} Rd8 {[%emt 0:00:05]} 32. Nxc7 {[%emt 0:00:05]} Rd6 {[%emt 0:00:08]} 33. Nc3 {[%emt 0:01:17]} Ke7 {[%emt 0:00:05]} 34. e4 {[%emt 0:00:15]} Bxe4 {[%emt 0:00:04]} 35. Nxe4 {[%emt 0:00:01]} Rd7 {[%emt 0:00:10]} 36. Nxa6 {[%emt 0:00:03]} 1-0